[Event "*** Titled Tuesday Blitz"]
[Site "Chess.com"]
[Date "2019.10.01"]
[Round "10"]
[White "newauto"]
[Black "colegiodemadrid"]
[Result "0-1"]
[WhiteElo "2019"]
[BlackElo "2353"]
[TimeControl "180+2"]
[EndTime "15:26:01 PDT"]
[Termination "colegiodemadrid won on time"]

1. e4 {[%clk 0:03:01.9]} 1... e5 {[%clk 0:02:58.9]} 2. Nf3 {[%clk 0:03:02.3]}
2... Nc6 {[%clk 0:02:59.8]} 3. Bb5 {[%clk 0:03:02.9]} 3... g6 {[%clk 0:02:59.9]}
4. O-O {[%clk 0:03:02.8]} 4... Bg7 {[%clk 0:03:01]} 5. c3 {[%clk 0:02:49.8]}
5... d6 {[%clk 0:03:01.7]} 6. h3 {[%clk 0:02:49.7]} 6... Nf6 {[%clk 0:02:59.9]}
7. Re1 {[%clk 0:02:48.8]} 7... O-O {[%clk 0:03:01.3]} 8. d4 {[%clk 0:02:48.6]}
8... Bd7 {[%clk 0:03:02.9]} 9. d5 {[%clk 0:02:37.1]} 9... Ne7 {[%clk 0:03:00]}
10. Bxd7 {[%clk 0:02:39]} 10... Nxd7 {[%clk 0:03:01.3]} 11. Nfd2 {[%clk
0:02:21]} 11... f5 {[%clk 0:02:59.1]} 12. f3 {[%clk 0:02:21.6]} 12... f4 {[%clk
0:02:53.2]} 13. c4 {[%clk 0:02:18.6]} 13... a5 {[%clk 0:02:51.3]} 14. a3 {[%clk
0:02:10.7]} 14... h5 {[%clk 0:02:51.3]} 15. Nc3 {[%clk 0:02:08.3]} 15... g5
{[%clk 0:02:51.4]} 16. Nf1 {[%clk 0:02:05.4]} 16... Ng6 {[%clk 0:02:49.3]} 17.
Bd2 {[%clk 0:01:59.5]} 17... Nf6 {[%clk 0:02:47.7]} 18. b4 {[%clk 0:01:59.2]}
18... axb4 {[%clk 0:02:47.8]} 19. axb4 {[%clk 0:01:59.6]} 19... Rxa1 {[%clk
0:02:49.7]} 20. Qxa1 {[%clk 0:02:00]} 20... g4 {[%clk 0:02:51.6]} 21. hxg4
{[%clk 0:01:55.6]} 21... hxg4 {[%clk 0:02:53.5]} 22. Kf2 {[%clk 0:01:56.2]}
22... gxf3 {[%clk 0:02:48.7]} 23. gxf3 {[%clk 0:01:56.6]} 23... c6 {[%clk
0:02:47.7]} 24. Nh2 {[%clk 0:01:54.2]} 24... Qb6+ {[%clk 0:02:45.7]} 25. c5
{[%clk 0:01:43.5]} 25... Qxb4 {[%clk 0:02:39.1]} 26. cxd6 {[%clk 0:01:32.2]}
26... Qc5+ {[%clk 0:02:39.9]} 27. Ke2 {[%clk 0:01:30.1]} 27... cxd5 {[%clk
0:02:40.1]} 28. Qa2 {[%clk 0:01:19]} 28... Qxd6 {[%clk 0:02:31.8]} 29. Nxd5
{[%clk 0:01:16.9]} 29... Nxd5 {[%clk 0:02:32.4]} 30. Qxd5+ {[%clk 0:01:10.1]}
30... Qxd5 {[%clk 0:02:33.1]} 31. exd5 {[%clk 0:01:11.1]} 31... Rd8 {[%clk
0:02:35]} 32. Rb1 {[%clk 0:01:07.7]} 32... Rxd5 {[%clk 0:02:28.3]} 33. Rxb7
{[%clk 0:01:07]} 33... Nh4 {[%clk 0:02:26.5]} 34. Ng4 {[%clk 0:01:04.3]} 34...
Nxf3 {[%clk 0:02:23]} 35. Kxf3 {[%clk 0:00:41.3]} 35... Rxd2 {[%clk 0:02:23.4]}
36. Ke4 {[%clk 0:00:42.2]} 36... Rd4+ {[%clk 0:02:13.2]} 37. Kf5 {[%clk
0:00:42]} 37... f3 {[%clk 0:02:14.8]} 38. Nh2 {[%clk 0:00:04.8]} 38... e4 {[%clk
0:02:13.7]} 39. Kg6 {[%clk 0:00:04.7]} 39... Rd6+ {[%clk 0:02:13.8]} 40. Kf5
{[%clk 0:00:05.3]} 40... Rd4 {[%clk 0:02:12.2]} 41. Kg6 {[%clk 0:00:05.7]} 41...
f2 {[%clk 0:02:10.1]} 42. Rb8+ {[%clk 0:00:06.2]} 42... Bf8 {[%clk 0:02:11.3]}
43. Ng4 {[%clk 0:00:04.8]} 43... Rd6+ {[%clk 0:02:11.5]} 44. Kf5 {[%clk
0:00:02.9]} 44... f1=Q+ {[%clk 0:02:12]} 45. Kxe4 {[%clk 0:00:03.3]} 45... Re6+
{[%clk 0:02:10.3]} 0-1

[Event "*** Titled Tuesday Blitz"]
[Site "Chess.com"]
[Date "2019.10.01"]
[Round "10"]
[White "TrimitziosP7"]
[Black "TheFireChess"]
[Result "1-0"]
[WhiteElo "2744"]
[BlackElo "2516"]
[TimeControl "180+2"]
[EndTime "15:26:12 PDT"]
[Termination "TrimitziosP7 won by checkmate"]

1. Nf3 {[%clk 0:03:01.9]} 1... f5 {[%clk 0:02:59.7]} 2. Nc3 {[%clk 0:03:02.3]}
2... Nf6 {[%clk 0:03:00.2]} 3. d3 {[%clk 0:03:03.4]} 3... d6 {[%clk 0:03:01.6]}
4. e4 {[%clk 0:03:03.9]} 4... e5 {[%clk 0:03:02.8]} 5. exf5 {[%clk 0:02:59.5]}
5... Bxf5 {[%clk 0:03:04.7]} 6. d4 {[%clk 0:03:00.5]} 6... e4 {[%clk 0:03:00.2]}
7. Ng1 {[%clk 0:03:00.1]} 7... d5 {[%clk 0:02:59.9]} 8. Nge2 {[%clk 0:03:01.2]}
8... Bd6 {[%clk 0:03:00.6]} 9. Ng3 {[%clk 0:03:01.7]} 9... Bg6 {[%clk 0:02:48]}
10. Be2 {[%clk 0:02:55.2]} 10... O-O {[%clk 0:02:48]} 11. Be3 {[%clk 0:02:54]}
11... c6 {[%clk 0:02:39.6]} 12. Qd2 {[%clk 0:02:52]} 12... b5 {[%clk 0:02:39.9]}
13. O-O {[%clk 0:02:50.5]} 13... a5 {[%clk 0:02:40.3]} 14. Rae1 {[%clk
0:02:49.3]} 14... a4 {[%clk 0:02:39.6]} 15. Nd1 {[%clk 0:02:48.2]} 15... Nbd7
{[%clk 0:02:39.3]} 16. f3 {[%clk 0:02:47.4]} 16... Bxg3 {[%clk 0:02:39.1]} 17.
hxg3 {[%clk 0:02:46.9]} 17... Qe7 {[%clk 0:02:35.5]} 18. Nf2 {[%clk 0:02:46.3]}
18... Rae8 {[%clk 0:02:33]} 19. Bd1 {[%clk 0:02:43.4]} 19... Nh5 {[%clk
0:02:16.9]} 20. Nh1 {[%clk 0:02:39.4]} 20... Qd6 {[%clk 0:02:15.1]} 21. f4
{[%clk 0:02:33.6]} 21... Nhf6 {[%clk 0:01:56.4]} 22. g4 {[%clk 0:02:33.1]} 22...
Nb6 {[%clk 0:01:56]} 23. b3 {[%clk 0:02:32.7]} 23... axb3 {[%clk 0:01:56.6]} 24.
axb3 {[%clk 0:02:34.6]} 24... Ra8 {[%clk 0:01:57.5]} 25. g5 {[%clk 0:02:33.2]}
25... Nfd7 {[%clk 0:01:57.1]} 26. g4 {[%clk 0:02:32.9]} 26... Ra2 {[%clk
0:01:52.5]} 27. f5 {[%clk 0:02:32.9]} 27... Bf7 {[%clk 0:01:53]} 28. Qg2 {[%clk
0:02:26.9]} 28... Rfa8 {[%clk 0:01:49.9]} 29. Ng3 {[%clk 0:02:23.7]} 29... c5
{[%clk 0:01:42.3]} 30. dxc5 {[%clk 0:02:19.8]} 30... Nxc5 {[%clk 0:01:44.2]} 31.
Bf4 {[%clk 0:02:13.3]} 31... Qc6 {[%clk 0:01:34]} 32. Qh3 {[%clk 0:02:12.6]}
32... Qc8 {[%clk 0:00:59.7]} 33. Nh5 {[%clk 0:02:11.5]} 33... Bxh5 {[%clk
0:00:56.1]} 34. gxh5 {[%clk 0:02:13.4]} 34... d4 {[%clk 0:00:27.1]} 35. g6
{[%clk 0:02:09.5]} 35... h6 {[%clk 0:00:24.8]} 36. Bg4 {[%clk 0:02:04.1]} 36...
Qf8 {[%clk 0:00:22.6]} 37. f6 {[%clk 0:01:59.8]} 37... Qxf6 {[%clk 0:00:19.5]}
38. Bxh6 {[%clk 0:02:00.8]} 38... Qe7 {[%clk 0:00:13.1]} 39. Bf4 {[%clk
0:02:00.3]} 39... Rxc2 {[%clk 0:00:12.7]} 40. h6 {[%clk 0:01:47.2]} 40... gxh6
{[%clk 0:00:14.6]} 41. Bxh6 {[%clk 0:01:47.9]} 41... Raa2 {[%clk 0:00:15.6]} 42.
Rf7 {[%clk 0:01:45.9]} 42... Rg2+ {[%clk 0:00:13.5]} 43. Qxg2 {[%clk 0:01:46.4]}
43... Rxg2+ {[%clk 0:00:14]} 44. Kxg2 {[%clk 0:01:48.3]} 44... Qe5 {[%clk
0:00:14]} 45. Rf8# {[%clk 0:01:48.4]} 1-0

[Event "*** Titled Tuesday Blitz"]
[Site "Chess.com"]
[Date "2019.10.01"]
[Round "10"]
[White "MasterKroket"]
[Black "imdvb6307"]
[Result "1-0"]
[WhiteElo "2428"]
[BlackElo "2401"]
[TimeControl "180+2"]
[EndTime "15:26:15 PDT"]
[Termination "MasterKroket won by resignation"]

1. d4 {[%clk 0:03:01.9]} 1... f5 {[%clk 0:02:59.4]} 2. c4 {[%clk 0:03:02.2]}
2... Nf6 {[%clk 0:02:59.1]} 3. Nf3 {[%clk 0:03:03.2]} 3... d6 {[%clk 0:02:59.6]}
4. Nc3 {[%clk 0:03:02.6]} 4... g6 {[%clk 0:02:59.6]} 5. g3 {[%clk 0:03:04]} 5...
Bg7 {[%clk 0:03:00.4]} 6. Bg2 {[%clk 0:03:05.7]} 6... O-O {[%clk 0:03:01]} 7.
O-O {[%clk 0:03:07.4]} 7... Qe8 {[%clk 0:02:59.5]} 8. d5 {[%clk 0:03:08.3]} 8...
a5 {[%clk 0:02:57.2]} 9. Qc2 {[%clk 0:03:04.2]} 9... Na6 {[%clk 0:02:52.9]} 10.
a3 {[%clk 0:03:02]} 10... Nc5 {[%clk 0:02:51]} 11. Be3 {[%clk 0:02:57.3]} 11...
Nfe4 {[%clk 0:01:57.2]} 12. Bd4 {[%clk 0:02:46.7]} 12... Qf7 {[%clk 0:01:40.4]}
13. b4 {[%clk 0:02:41]} 13... axb4 {[%clk 0:01:23.8]} 14. axb4 {[%clk 0:02:41]}
14... Rxa1 {[%clk 0:01:24.3]} 15. Rxa1 {[%clk 0:02:42.9]} 15... Nxc3 {[%clk
0:01:22.2]} 16. Bxc3 {[%clk 0:02:34.3]} 16... Bxc3 {[%clk 0:01:21.2]} 17. Qxc3
{[%clk 0:02:34.5]} 17... Ne4 {[%clk 0:01:21.6]} 18. Qd4 {[%clk 0:02:34]} 18...
e5 {[%clk 0:01:17.7]} 19. dxe6 {[%clk 0:02:34.7]} 19... Bxe6 {[%clk 0:01:18]}
20. Ra7 {[%clk 0:02:33.9]} 20... b6 {[%clk 0:01:10.4]} 21. c5 {[%clk 0:01:56.3]}
21... bxc5 {[%clk 0:00:45.8]} 22. bxc5 {[%clk 0:01:56.8]} 22... dxc5 {[%clk
0:00:47]} 23. Qe5 {[%clk 0:01:56.7]} 23... Qf6 {[%clk 0:00:43.5]} 24. Qxf6
{[%clk 0:01:55.5]} 24... Rxf6 {[%clk 0:00:42.3]} 25. Rxc7 {[%clk 0:01:57]} 25...
c4 {[%clk 0:00:42.8]} 26. Ne5 {[%clk 0:01:56]} 26... Nc3 {[%clk 0:00:40.5]} 27.
Kf1 {[%clk 0:01:50.9]} 27... Nb5 {[%clk 0:00:39.1]} 28. Rc5 {[%clk 0:01:51.8]}
28... Nd6 {[%clk 0:00:34]} 29. Rc6 {[%clk 0:01:51.6]} 29... Bf7 {[%clk
0:00:26.2]} 30. Nd7 {[%clk 0:01:34.3]} 30... Re6 {[%clk 0:00:21]} 31. Bd5 {[%clk
0:01:35]} 31... Re7 {[%clk 0:00:07.9]} 32. Rxd6 {[%clk 0:01:34.9]} 32... Bxd5
{[%clk 0:00:06.6]} 33. Rxd5 {[%clk 0:01:35.8]} 33... c3 {[%clk 0:00:06.7]} 34.
Nc5 {[%clk 0:01:34.2]} 34... c2 {[%clk 0:00:05.9]} 35. Nd3 {[%clk 0:01:29.8]}
35... Rc7 {[%clk 0:00:05.4]} 36. Nc1 {[%clk 0:01:30.9]} 36... Rb7 {[%clk
0:00:05.6]} 37. Ke1 {[%clk 0:01:32.2]} 37... Kf7 {[%clk 0:00:02.4]} 38. Kd2
{[%clk 0:01:33.4]} 38... Ke6 {[%clk 0:00:03.8]} 39. Rd3 {[%clk 0:01:34.2]} 39...
Rb2 {[%clk 0:00:04.5]} 40. Rc3 {[%clk 0:01:34.5]} 1-0

[Event "*** Titled Tuesday Blitz"]
[Site "Chess.com"]
[Date "2019.10.01"]
[Round "10"]
[White "dolynachess"]
[Black "Qvalda"]
[Result "1-0"]
[WhiteElo "2422"]
[BlackElo "2511"]
[TimeControl "180+2"]
[EndTime "15:26:21 PDT"]
[Termination "dolynachess won by resignation"]

1. d4 {[%clk 0:03:01.9]} 1... d5 {[%clk 0:02:58.2]} 2. c4 {[%clk 0:03:03.8]}
2... e6 {[%clk 0:02:53.1]} 3. Nf3 {[%clk 0:03:04.3]} 3... Nf6 {[%clk 0:02:53.4]}
4. g3 {[%clk 0:03:05.4]} 4... a6 {[%clk 0:02:38.4]} 5. Bg2 {[%clk 0:03:07.3]}
5... dxc4 {[%clk 0:02:38.2]} 6. O-O {[%clk 0:03:05.2]} 6... b5 {[%clk
0:02:38.4]} 7. Ne5 {[%clk 0:02:50.4]} 7... c6 {[%clk 0:02:38.5]} 8. a4 {[%clk
0:02:48.9]} 8... Bb7 {[%clk 0:02:33.6]} 9. Nc3 {[%clk 0:02:47.3]} 9... Nd5
{[%clk 0:02:12.2]} 10. e4 {[%clk 0:02:35.5]} 10... Nxc3 {[%clk 0:02:11.1]} 11.
bxc3 {[%clk 0:02:37.4]} 11... Bd6 {[%clk 0:02:08.9]} 12. Qh5 {[%clk 0:02:35.3]}
12... O-O {[%clk 0:02:02.5]} 13. Ba3 {[%clk 0:02:25.3]} 13... Bxa3 {[%clk
0:02:00.9]} 14. Rxa3 {[%clk 0:02:27.2]} 14... Nd7 {[%clk 0:01:59.7]} 15. f4
{[%clk 0:02:25.4]} 15... Nf6 {[%clk 0:01:30.7]} 16. Qe2 {[%clk 0:02:19.4]} 16...
c5 {[%clk 0:01:30.8]} 17. dxc5 {[%clk 0:02:08.5]} 17... Qc7 {[%clk 0:01:28.2]}
18. Qe3 {[%clk 0:02:08.1]} 18... Rac8 {[%clk 0:01:22.6]} 19. axb5 {[%clk
0:02:08.7]} 19... axb5 {[%clk 0:01:22.2]} 20. Ra7 {[%clk 0:02:09.3]} 20... Ra8
{[%clk 0:01:11.2]} 21. c6 {[%clk 0:01:58.6]} 21... Ng4 {[%clk 0:00:37.3]} 22.
Nxg4 {[%clk 0:01:21.7]} 22... Qxc6 {[%clk 0:00:38.2]} 23. Ne5 {[%clk 0:01:22.4]}
23... Qc8 {[%clk 0:00:29.1]} 24. Rfa1 {[%clk 0:01:23.3]} 24... Rxa7 {[%clk
0:00:27.9]} 25. Rxa7 {[%clk 0:01:25.2]} 25... f6 {[%clk 0:00:26.5]} 26. Qb6
{[%clk 0:01:18.1]} 26... fxe5 {[%clk 0:00:07.2]} 27. Qxb7 {[%clk 0:01:19.1]}
27... Qxb7 {[%clk 0:00:03.1]} 28. Rxb7 {[%clk 0:01:21]} 28... exf4 {[%clk
0:00:04.9]} 29. gxf4 {[%clk 0:01:22.1]} 29... Rxf4 {[%clk 0:00:04.5]} 30. Rxb5
{[%clk 0:01:23.2]} 30... Kf7 {[%clk 0:00:04.9]} 31. Rc5 {[%clk 0:01:24.2]} 31...
Kf6 {[%clk 0:00:06.3]} 32. Rxc4 {[%clk 0:01:25.4]} 32... g5 {[%clk 0:00:07.7]}
33. e5+ {[%clk 0:01:22.8]} 33... Kxe5 {[%clk 0:00:09]} 34. Rxf4 {[%clk
0:01:23.9]} 34... gxf4 {[%clk 0:00:09.9]} 35. Kf2 {[%clk 0:01:23.1]} 35... Kf5
{[%clk 0:00:10.5]} 36. Kf3 {[%clk 0:01:23.1]} 36... e5 {[%clk 0:00:11.9]} 37.
Bh3+ {[%clk 0:01:24.3]} 37... Kg5 {[%clk 0:00:12.4]} 38. Bf1 {[%clk 0:01:24.9]}
38... Kf5 {[%clk 0:00:11.1]} 39. Bd3+ {[%clk 0:01:24.8]} 39... Ke6 {[%clk
0:00:12.5]} 40. Bxh7 {[%clk 0:01:25.3]} 40... Kd5 {[%clk 0:00:13.3]} 41. Bd3
{[%clk 0:01:26.6]} 1-0

[Event "*** Titled Tuesday Blitz"]
[Site "Chess.com"]
[Date "2019.10.01"]
[Round "10"]
[White "Bucefal_M"]
[Black "chessS1r"]
[Result "0-1"]
[WhiteElo "2296"]
[BlackElo "2477"]
[TimeControl "180+2"]
[EndTime "15:26:21 PDT"]
[Termination "chessS1r won on time"]

1. d4 {[%clk 0:03:01.9]} 1... d5 {[%clk 0:02:45.5]} 2. c4 {[%clk 0:02:51.9]}
2... e6 {[%clk 0:02:46.6]} 3. Nf3 {[%clk 0:02:52.4]} 3... Nf6 {[%clk 0:02:47.4]}
4. g3 {[%clk 0:02:53.4]} 4... dxc4 {[%clk 0:02:47.7]} 5. Bg2 {[%clk 0:02:54.5]}
5... a6 {[%clk 0:02:49.3]} 6. O-O {[%clk 0:02:54.8]} 6... b5 {[%clk 0:02:50.1]}
7. a4 {[%clk 0:02:45.8]} 7... Bb7 {[%clk 0:02:49.6]} 8. b3 {[%clk 0:02:29.9]}
8... cxb3 {[%clk 0:02:40.2]} 9. Qxb3 {[%clk 0:02:30.4]} 9... c6 {[%clk
0:02:42.1]} 10. Ba3 {[%clk 0:02:11.3]} 10... Bxa3 {[%clk 0:02:41.2]} 11. Qxa3
{[%clk 0:01:59.4]} 11... Qe7 {[%clk 0:02:41.6]} 12. Ne5 {[%clk 0:02:00]} 12...
Qxa3 {[%clk 0:02:37.2]} 13. Rxa3 {[%clk 0:02:00.8]} 13... Nfd7 {[%clk
0:02:34.4]} 14. Nd3 {[%clk 0:01:59.3]} 14... Ke7 {[%clk 0:02:31.4]} 15. Nd2
{[%clk 0:01:55]} 15... Rc8 {[%clk 0:02:30.5]} 16. Rfa1 {[%clk 0:01:42.3]} 16...
Rc7 {[%clk 0:02:19.4]} 17. Nb3 {[%clk 0:01:43]} 17... Ra7 {[%clk 0:02:09.5]} 18.
Nb4 {[%clk 0:00:45.7]} 18... a5 {[%clk 0:02:07]} 19. axb5 {[%clk 0:00:44.5]}
19... cxb5 {[%clk 0:02:08.1]} 20. Rxa5 {[%clk 0:00:42]} 20... Rxa5 {[%clk
0:01:59.4]} 21. Rxa5 {[%clk 0:00:30.8]} 21... Bxg2 {[%clk 0:01:59.7]} 22. Kxg2
{[%clk 0:00:32.7]} 22... Rc3 {[%clk 0:02:00.4]} 23. Nd2 {[%clk 0:00:24.6]} 23...
Nc6 {[%clk 0:01:51.7]} 24. Nxc6+ {[%clk 0:00:23.3]} 24... Rxc6 {[%clk
0:01:53.6]} 25. Rxb5 {[%clk 0:00:24.8]} 25... Rc2 {[%clk 0:01:54.8]} 26. Nf3
{[%clk 0:00:19.6]} 26... Rxe2 {[%clk 0:01:55.4]} 27. Rb7 {[%clk 0:00:20.8]}
27... f6 {[%clk 0:01:55]} 28. Kf1 {[%clk 0:00:16.8]} 28... Ra2 {[%clk
0:01:52.7]} 29. h4 {[%clk 0:00:11.8]} 29... Kd6 {[%clk 0:01:51.1]} 30. h5 {[%clk
0:00:12.9]} 30... Ra5 {[%clk 0:01:48.7]} 31. g4 {[%clk 0:00:11.6]} 31... f5
{[%clk 0:01:49.1]} 32. g5 {[%clk 0:00:10.3]} 32... h6 {[%clk 0:01:42.5]} 33. g6
{[%clk 0:00:09.4]} 33... f4 {[%clk 0:01:42.9]} 34. Ne5 {[%clk 0:00:10]} 34...
Nxe5 {[%clk 0:01:42.5]} 35. dxe5+ {[%clk 0:00:09.5]} 35... Rxe5 {[%clk
0:01:44.4]} 36. Rxg7 {[%clk 0:00:10.9]} 36... Rxh5 {[%clk 0:01:45.7]} 37. Rf7
{[%clk 0:00:05.7]} 37... e5 {[%clk 0:01:41.1]} 38. g7 {[%clk 0:00:04.3]} 38...
Rg5 {[%clk 0:01:42.3]} 39. Rf6+ {[%clk 0:00:05.5]} 39... Kd5 {[%clk 0:01:43.6]}
40. Rxh6 {[%clk 0:00:06.8]} 40... Rxg7 {[%clk 0:01:43.5]} 41. f3 {[%clk
0:00:07.1]} 41... Kd4 {[%clk 0:01:44]} 42. Ra6 {[%clk 0:00:02.8]} 42... Rc7
{[%clk 0:01:43.3]} 0-1

[Event "*** Titled Tuesday Blitz"]
[Site "Chess.com"]
[Date "2019.10.01"]
[Round "10"]
[White "politeplayer"]
[Black "DonBroca"]
[Result "1-0"]
[WhiteElo "2172"]
[BlackElo "2073"]
[TimeControl "180+2"]
[EndTime "15:26:40 PDT"]
[Termination "politeplayer won on time"]

1. d4 {[%clk 0:03:01.9]} 1... Nf6 {[%clk 0:02:58.4]} 2. Nf3 {[%clk 0:03:03.3]}
2... g6 {[%clk 0:02:58.8]} 3. c4 {[%clk 0:03:02.7]} 3... Bg7 {[%clk 0:02:59.9]}
4. Nc3 {[%clk 0:03:04.3]} 4... d6 {[%clk 0:03:01.1]} 5. e4 {[%clk 0:03:04.7]}
5... O-O {[%clk 0:03:02.7]} 6. Be2 {[%clk 0:03:05.3]} 6... e5 {[%clk 0:03:03.8]}
7. O-O {[%clk 0:03:06.7]} 7... Nc6 {[%clk 0:03:04.5]} 8. d5 {[%clk 0:03:08.1]}
8... Ne7 {[%clk 0:03:06]} 9. Nd2 {[%clk 0:03:09]} 9... Ne8 {[%clk 0:03:02.5]}
10. b4 {[%clk 0:03:09]} 10... f5 {[%clk 0:03:01]} 11. f3 {[%clk 0:03:02]} 11...
c6 {[%clk 0:02:44.7]} 12. dxc6 {[%clk 0:02:59.9]} 12... bxc6 {[%clk 0:02:37]}
13. b5 {[%clk 0:02:56.2]} 13... cxb5 {[%clk 0:02:23.2]} 14. cxb5 {[%clk
0:02:53.5]} 14... Be6 {[%clk 0:02:10]} 15. Bc4 {[%clk 0:02:52.2]} 15... Bxc4
{[%clk 0:01:55.6]} 16. Nxc4 {[%clk 0:02:52.9]} 16... Rc8 {[%clk 0:01:56.8]} 17.
Qb3 {[%clk 0:02:52.8]} 17... Kh8 {[%clk 0:01:53.2]} 18. Bg5 {[%clk 0:02:53.9]}
18... h6 {[%clk 0:01:47.7]} 19. Bxe7 {[%clk 0:02:53.8]} 19... Qxe7 {[%clk
0:01:49.2]} 20. Nd5 {[%clk 0:02:55]} 20... Qb7 {[%clk 0:01:26.6]} 21. a4 {[%clk
0:02:52.7]} 21... Qd7 {[%clk 0:00:45.8]} 22. b6 {[%clk 0:02:50.4]} 22... axb6
{[%clk 0:00:42.9]} 23. Ncxb6 {[%clk 0:02:48.9]} 23... Qa7 {[%clk 0:00:39.4]} 24.
Kh1 {[%clk 0:02:31.1]} 24... Rb8 {[%clk 0:00:40.3]} 25. a5 {[%clk 0:02:31.1]}
25... Nc7 {[%clk 0:00:39]} 26. Rfc1 {[%clk 0:02:24.6]} 26... Nxd5 {[%clk
0:00:36.3]} 27. Qxd5 {[%clk 0:02:26]} 27... fxe4 {[%clk 0:00:32.3]} 28. Qxe4
{[%clk 0:02:20.3]} 28... Rf4 {[%clk 0:00:32.1]} 29. Qxg6 {[%clk 0:02:17.8]}
29... e4 {[%clk 0:00:19.8]} 30. Qxd6 {[%clk 0:02:15]} 30... Rff8 {[%clk
0:00:03.2]} 31. Ra3 {[%clk 0:01:59.4]} 31... exf3 {[%clk 0:00:04.2]} 32. Rxf3
{[%clk 0:01:59.6]} 32... Qxa5 {[%clk 0:00:04.7]} 33. Nd7 {[%clk 0:01:35.7]}
33... Qg5 {[%clk 0:00:03]} 34. Rg1 {[%clk 0:01:24.1]} 34... Rbd8 {[%clk
0:00:03.2]} 35. Rxf8+ {[%clk 0:01:15.7]} 35... Bxf8 {[%clk 0:00:04.4]} 36. Qe6
{[%clk 0:01:03.9]} 36... Bg7 {[%clk 0:00:03.3]} 37. Rf1 {[%clk 0:01:03]} 37...
Ra8 {[%clk 0:00:02.6]} 38. h3 {[%clk 0:00:58.9]} 1-0

[Event "*** Titled Tuesday Blitz"]
[Site "Chess.com"]
[Date "2019.10.01"]
[Round "10"]
[White "ThePunisherxx"]
[Black "kacprekt"]
[Result "1/2-1/2"]
[WhiteElo "2632"]
[BlackElo "2443"]
[TimeControl "180+2"]
[EndTime "15:26:51 PDT"]
[Termination "Game drawn by stalemate"]

1. c4 {[%clk 0:03:01.9]} 1... f5 {[%clk 0:02:59.8]} 2. g3 {[%clk 0:02:59.8]}
2... Nf6 {[%clk 0:03:00.9]} 3. Bg2 {[%clk 0:03:01.7]} 3... d6 {[%clk 0:03:01.7]}
4. Nc3 {[%clk 0:03:01.9]} 4... g6 {[%clk 0:03:03.2]} 5. d3 {[%clk 0:03:03.1]}
5... Bg7 {[%clk 0:03:03.9]} 6. e4 {[%clk 0:03:03.6]} 6... O-O {[%clk 0:03:04.9]}
7. Nge2 {[%clk 0:03:04.4]} 7... Nc6 {[%clk 0:03:05.1]} 8. O-O {[%clk 0:03:05]}
8... e5 {[%clk 0:03:05.9]} 9. Nd5 {[%clk 0:03:05.1]} 9... h6 {[%clk 0:03:00.6]}
10. Be3 {[%clk 0:02:55.3]} 10... g5 {[%clk 0:02:58.5]} 11. exf5 {[%clk
0:02:54.3]} 11... Bxf5 {[%clk 0:02:58]} 12. Nxf6+ {[%clk 0:02:49.6]} 12... Qxf6
{[%clk 0:02:57.3]} 13. Nc3 {[%clk 0:02:50.1]} 13... Qf7 {[%clk 0:02:51]} 14. Bd5
{[%clk 0:02:39.3]} 14... Be6 {[%clk 0:02:51.9]} 15. Be4 {[%clk 0:02:25.2]} 15...
Rab8 {[%clk 0:02:40.8]} 16. Rb1 {[%clk 0:02:24.4]} 16... Nd4 {[%clk 0:02:35.2]}
17. Bxd4 {[%clk 0:02:15.7]} 17... exd4 {[%clk 0:02:34.5]} 18. Ne2 {[%clk
0:02:16.7]} 18... c6 {[%clk 0:02:31]} 19. f4 {[%clk 0:02:08.8]} 19... Bh3 {[%clk
0:02:28.3]} 20. Bg2 {[%clk 0:02:03.7]} 20... Bxg2 {[%clk 0:02:26.3]} 21. Kxg2
{[%clk 0:02:05.6]} 21... Qh5 {[%clk 0:02:22.1]} 22. Ng1 {[%clk 0:01:56.9]} 22...
Qxd1 {[%clk 0:02:14.3]} 23. Rbxd1 {[%clk 0:01:58.8]} 23... b5 {[%clk 0:02:14.9]}
24. b3 {[%clk 0:01:58.3]} 24... a5 {[%clk 0:02:14.4]} 25. fxg5 {[%clk 0:01:59]}
25... hxg5 {[%clk 0:02:15]} 26. Rxf8+ {[%clk 0:01:59.2]} 26... Bxf8 {[%clk
0:02:16.4]} 27. Nf3 {[%clk 0:01:52]} 27... Bg7 {[%clk 0:02:09]} 28. Nxg5 {[%clk
0:01:50.2]} 28... a4 {[%clk 0:02:07.1]} 29. Rf1 {[%clk 0:01:25.3]} 29... axb3
{[%clk 0:02:05.3]} 30. axb3 {[%clk 0:01:26.2]} 30... bxc4 {[%clk 0:02:06.3]} 31.
bxc4 {[%clk 0:01:28.1]} 31... Rb3 {[%clk 0:01:58.9]} 32. Rf3 {[%clk 0:01:24.7]}
32... Bh6 {[%clk 0:01:55.7]} 33. Ne4 {[%clk 0:01:24]} 33... Be3 {[%clk
0:01:55.3]} 34. Nxd6 {[%clk 0:01:03.3]} 34... Rxd3 {[%clk 0:01:55.1]} 35. Nf5
{[%clk 0:01:01.3]} 35... Rd2+ {[%clk 0:01:56]} 36. Kh3 {[%clk 0:01:02.1]} 36...
Bg1 {[%clk 0:01:55]} 37. Rf1 {[%clk 0:00:54.6]} 37... Rxh2+ {[%clk 0:01:53.8]}
38. Kg4 {[%clk 0:00:55.8]} 38... Be3 {[%clk 0:01:53.1]} 39. Nxe3 {[%clk
0:00:47.3]} 39... dxe3 {[%clk 0:01:54.1]} 40. Re1 {[%clk 0:00:48.6]} 40... Rc2
{[%clk 0:01:54.7]} 41. Rxe3 {[%clk 0:00:49.3]} 41... Rxc4+ {[%clk 0:01:55.9]}
42. Kf5 {[%clk 0:00:50.6]} 42... Kf7 {[%clk 0:01:53.8]} 43. g4 {[%clk
0:00:50.5]} 43... Rc5+ {[%clk 0:01:55.1]} 44. Kf4 {[%clk 0:00:51.3]} 44... Rd5
{[%clk 0:01:55.6]} 45. Ra3 {[%clk 0:00:50.7]} 45... Rd6 {[%clk 0:01:55.5]} 46.
Ra5 {[%clk 0:00:47.4]} 46... c5 {[%clk 0:01:54]} 47. Rxc5 {[%clk 0:00:47.6]}
47... Ra6 {[%clk 0:01:54.9]} 48. Kf5 {[%clk 0:00:47.4]} 48... Kg7 {[%clk
0:01:55.4]} 49. Rc7+ {[%clk 0:00:47.6]} 49... Kg8 {[%clk 0:01:56]} 50. Kg5
{[%clk 0:00:48.6]} 50... Rb6 {[%clk 0:01:56.3]} 51. Kh5 {[%clk 0:00:49.1]} 51...
Ra6 {[%clk 0:01:57.2]} 52. Rd7 {[%clk 0:00:48.7]} 52... Rb6 {[%clk 0:01:58.4]}
53. Re7 {[%clk 0:00:49.7]} 53... Ra6 {[%clk 0:01:59.8]} 54. Re5 {[%clk
0:00:50.7]} 54... Rb6 {[%clk 0:01:59.1]} 55. Kg5 {[%clk 0:00:52]} 55... Kg7
{[%clk 0:01:59.6]} 56. Kf5 {[%clk 0:00:50.6]} 56... Ra6 {[%clk 0:01:58.4]} 57.
Re7+ {[%clk 0:00:51.4]} 57... Kg8 {[%clk 0:01:55.4]} 58. Re6 {[%clk 0:00:52.5]}
58... Rxe6 {[%clk 0:01:49.3]} 59. Kxe6 {[%clk 0:00:54.4]} 59... Kg7 {[%clk
0:01:50.5]} 60. Kf5 {[%clk 0:00:52.2]} 60... Kf7 {[%clk 0:01:51.9]} 61. Kg5
{[%clk 0:00:53.3]} 61... Kg7 {[%clk 0:01:53.3]} 62. Kh5 {[%clk 0:00:54.8]} 62...
Kh7 {[%clk 0:01:54.7]} 63. Kg5 {[%clk 0:00:56.3]} 63... Kg7 {[%clk 0:01:56.2]}
64. Kf5 {[%clk 0:00:57.8]} 64... Kf7 {[%clk 0:01:57.6]} 65. g5 {[%clk
0:00:59.3]} 65... Kg7 {[%clk 0:01:58.7]} 66. g6 {[%clk 0:01:00.8]} 66... Kg8
{[%clk 0:02:00]} 67. Kg5 {[%clk 0:01:02.6]} 67... Kg7 {[%clk 0:02:01.2]} 68. Kf5
{[%clk 0:01:03.5]} 68... Kg8 {[%clk 0:02:02.5]} 69. Kf6 {[%clk 0:01:05.4]} 69...
Kf8 {[%clk 0:02:03.8]} 70. g7+ {[%clk 0:01:06.9]} 70... Kg8 {[%clk 0:02:05.2]}
71. Kg6 {[%clk 0:01:08.8]} 1/2-1/2